bitfinex/quotes_SOLUSD_20250402
["timestamp","ask_amount","ask_price","bid_price","bid_amount"]
[1743562208557,11.01283272,124.82,124.8,0.063]
[1743562210248,10.87067115,124.82,124.8,0.063]
[1743562210655,0.14216157,124.82,124.8,0.063]
[1743562210958,80.73,124.83,124.8,0.063]
[1743562211950,0.03,124.83,124.8,0.063]
[1743562213675,0.03,124.83,124.81,15.4006]
[1743562213851,91.57067115,124.89,124.81,15.4006]
[1743562214239,91.57067115,124.89,124.82,28.0403]
[1743562214542,11.01283272,124.88,124.82,28.0403]
[1743562215541,10.87067115,124.88,124.82,28.0403]
[1743562215943,91.57067115,124.89,124.82,28.0403]
[1743562217264,10.87067115,124.88,124.82,28.0403]
[1743562218877,91.60067115,124.89,124.82,28.0403]
[1743562222869,80.73,124.89,124.83,6.637]
[1743562223181,0.03,124.89,124.86,25.28664886]
[1743562224259,0.03,124.89,124.86,6.637]
[1743562225076,0.03,124.89,124.87,8.0083]
[1743562227399,0.03,124.89,124.86,6.637]
[1743562227400,0.03,124.89,124.86,14.6457]
[1743562228681,0.03,124.89,124.86,6.637]
[1743562228881,10.90067115,124.89,124.86,6.637]
[1743562230386,10.90067115,124.89,124.86,14.6459]
[1743562230700,0.03,124.89,124.86,14.6459]
[1743562231177,0.03,124.89,124.87,18.64964886]
[1743562231385,0.03,124.89,124.88,8.0076]
[1743562232096,0.03,124.89,124.88,26.65724886]
[1743562232676,0.03,124.89,124.88,8.0076]
[1743562234282,0.03,124.89,124.87,8.008]
[1743562276445,0.03,124.89,124.86,8.0088]
[1743562278346,0.03,124.89,124.86,28.0312]
[1743562280037,0.03,124.89,124.86,8.0088]
[1743562280549,0.03,124.89,124.86,28.0312]
[1743562284058,0.03,124.89,124.86,28.0312]
[1743562287059,0.03,124.89,124.87,18.64964886]
[1743562289446,0.03,124.89,124.88,8.0076]
[1743562294469,0.03,124.89,124.86,28.0313]
[1743562295953,0.03,124.89,124.87,18.64964886]
[1743562297378,0.03,124.89,124.88,8.0076]
[1743562300957,0.03,124.89,124.86,28.0313]
[1743562302070,0.03,124.89,124.88,8.0076]
[1743562302280,0.03,124.89,124.88,40.07094886]
[1743562302984,0.03,124.89,124.88,8.0076]
[1743562304881,0.03,124.89,124.87,8.0083]
[1743562306183,0.03,124.89,124.86,28.0313]
[1743562307760,0.03,124.89,124.87,18.64964886]
[1743562308277,0.03,124.89,124.88,8.0076]
[1743562308673,0.03,124.89,124.88,15.1476]
[1743562311094,0.03,124.9,124.88,15.43192314]
[1743562311268,0.03,124.9,124.89,24.78304886]
[1743562312896,0.03,124.9,124.89,32.79004886]
[1743562315292,0.03,124.9,124.89,34.37134886]
[1743562316789,0.03,124.9,124.89,8.007]
[1743562318184,0.03,124.9,124.89,8.29132314]
[1743562322186,0.03,124.9,124.89,8.007]
[1743562323270,0.03,124.9,124.88,26.65724886]
[1743562326278,0.03,124.9,124.89,0.28432314]
[1743562327288,0.03,124.9,124.89,8.29132314]
[1743562329016,0.03,124.9,124.89,8.007]
[1743562329387,0.03,124.9,124.88,26.65724886]
[1743562334419,0.03,124.9,124.89,0.28432314]
[1743562336108,0.03,124.9,124.89,8.29132314]
[1743562344210,0.03,124.9,124.89,26.65664886]
[1743562346513,0.03,124.9,124.89,26.71964886]
[1743562350207,0.03,124.96,124.92,20.0]
[1743562350407,4.8863,124.96,124.92,20.0]
[1743562350608,10.86132675,124.94,124.89,8.07]
[1743562350829,12.52542675,124.95,124.89,8.07]
[1743562351406,1.6641,124.95,124.89,8.07]
[1743562352322,1.6641,124.95,124.89,28.0876]
[1743562353110,1.6641,124.95,124.9,18.64964886]
[1743562353321,0.03,124.96,124.9,18.64964886]
[1743562354408,0.03,124.96,124.91,8.0057]
[1743562354609,10.89132675,124.96,124.91,8.0057]
[1743562355432,10.86132675,124.95,124.91,8.0057]
[1743562357015,10.86132675,124.95,124.9,8.0064]
[1743562358033,10.89132675,124.95,124.9,8.0064]
[1743562358534,10.89132675,124.95,124.89,28.0876]
[1743562360034,0.03,124.95,124.89,28.0876]
[1743562360232,10.89132675,124.95,124.89,28.0876]
[1743562361932,0.03,124.95,124.89,28.0876]
[1743562375049,0.03,124.95,124.89,35.2076]
[1743562375347,10.89132675,124.95,124.89,35.2076]
[1743562376745,0.03,124.95,124.89,35.2076]
[1743562392641,10.89132675,124.95,124.89,15.19]
[1743562392847,12.45532675,124.94,124.89,8.07]
[1743562393241,10.86132675,124.93,124.89,8.07]
[1743562393646,0.03,124.95,124.9,0.28432314]
[1743562393844,0.03,124.95,124.94,20.0]
[1743562394348,0.03,124.95,124.94,28.0038]
[1743562394656,0.03,124.95,124.94,35.1238]
[1743562395177,0.03,124.95,124.94,60.340872]
[1743562395362,0.03,124.95,124.94,60.05654886]
[1743562395665,0.03,124.95,124.94,41.4069]
[1743562397386,0.03,124.95,124.94,45.4409]
[1743562398254,0.03,124.95,124.94,39.1578]
[1743562403360,0.03,124.95,124.94,32.0378]
[1743562410886,0.03,124.98,124.94,32.0378]
[1743562410887,1.5306,125.03,124.95,0.28432314]
[1743562411067,10.86132675,125.05,124.99,20.0]
[1743562412212,10.86132675,125.04,124.99,20.0]
[1743562412805,1.6277,125.06,125.0,33.197]
[1743562413101,0.03,125.08,125.02,18.64964886]
[1743562414402,0.03,125.08,125.04,20.0]
[1743562414991,0.03,125.08,125.05,7.9968]
[1743562415301,10.89132675,125.08,125.05,7.9968]
[1743562415796,10.86132675,125.07,125.04,7.9971]
[1743562417106,10.86132675,125.07,125.01,27.9975]
[1743562418510,10.86132675,125.06,125.01,27.9975]
[1743562419988,10.86132675,125.07,125.01,27.9975]
[1743562422083,80.73,125.08,125.01,27.9975]
[1743562423001,0.03,125.08,125.01,27.9975]
[1743562431023,10.86132675,125.07,125.01,27.9975]
[1743562432105,10.86132675,125.07,125.01,7.9993]
[1743562433232,10.86132675,125.06,125.01,7.9993]
[1743562436023,18.85752675,125.06,125.0,21.1967]
[1743562436219,10.86132675,125.05,125.0,7.9997]
[1743562436599,18.85812675,125.05,124.98,8.0642]
[1743562436926,18.85812675,125.05,124.98,15.1842]
[1743562437523,10.86132675,125.03,124.98,15.1842]
[1743562437705,10.86132675,125.03,124.98,8.0642]
[1743562438029,12.49362675,125.04,124.98,8.0642]
[1743562439028,10.86132675,125.03,124.98,8.0642]
[1743562439323,10.86132675,125.03,124.98,0.063]
[1743562439526,10.86132675,125.02,124.98,0.063]
[1743562441823,80.7,125.03,124.98,18.71264886]
[1743562442406,80.7,125.03,124.99,6.5406]
[1743562443429,82.3635,125.07,124.99,6.5406]
[1743562443609,93.22482675,125.07,124.99,6.5406]
[1743562444532,93.22482675,125.07,125.0,28.0]
[1743562444730,80.7,125.07,125.01,7.12]
[1743562444940,80.7,125.07,125.02,1.6537]
[1743562445236,0.03,125.08,125.02,1.6537]
[1743562446531,0.03,125.08,125.03,27.9932]
[1743562447127,10.89132675,125.08,125.03,7.998]
[1743562447436,0.03,125.08,125.03,7.998]
[1743562448334,0.03,125.08,125.03,27.9932]
[1743562455149,0.03,125.08,125.03,34.5744]
[1743562460551,0.03,125.08,125.07,21.6455]
[1743562461255,0.03,125.08,125.07,29.641]
[1743562461433,0.03,125.08,125.07,27.9955]
[1743562465946,0.03,125.08,125.07,7.9955]
[1743562471464,19.50856575,125.08,125.07,7.9955]
[1743562479562,19.50856575,125.08,125.05,27.9881]
[1743562484075,19.50856575,125.08,125.05,7.9968]
[1743562486175,30.3698925,125.08,125.04,7.9973]
[1743562487578,19.50856575,125.08,125.04,7.9973]
[1743562488057,19.50856575,125.08,125.03,7.998]
[1743562492569,19.50856575,125.08,125.03,27.9932]
[1743562493882,19.50856575,125.08,125.03,35.0932]
[1743562500087,19.50856575,125.08,125.03,19.9952]
[1743562500292,19.50856575,125.08,125.02,15.0987]
[1743562500293,38.3647925,125.08,125.02,15.0987]
[1743562500467,30.3698925,125.08,125.02,15.0987]
[1743562500781,30.3698925,125.08,125.02,35.0955]
[1743562500989,19.50856575,125.08,125.02,35.0955]
[1743562501590,19.50856575,125.08,125.03,18.64964886]
[1743562502178,19.50856575,125.08,125.04,27.991]
[1743562502799,19.50856575,125.08,125.02,7.9987]
[1743562502967,10.86132675,125.07,125.02,7.9987]
[1743562507186,18.85682675,125.07,125.02,7.9987]
[1743562508589,10.86132675,125.07,125.02,7.9987]
[1743562509190,18.85692675,125.07,125.02,7.9987]
[1743562509802,11.14564989,125.06,125.0,13.71]
[1743562509989,11.14564989,125.06,124.99,8.0002]
[1743562509990,10.86132675,125.05,124.99,8.0002]
[1743562510499,18.85862675,125.05,124.99,8.0002]
[1743562511191,80.98432314,125.04,124.98,8.064]
[1743562511487,10.86132675,125.02,124.98,0.063]
[1743562511667,0.28432314,125.02,124.98,0.063]
[1743562511873,10.86132675,125.01,124.98,0.063]
[1743562514300,10.86132675,125.0,124.98,0.063]
[1743562517991,10.86132675,124.99,124.98,0.063]
[1743562519591,11.14564989,124.99,124.98,0.063]
[1743562522798,91.84564989,124.99,124.98,0.063]
[1743562527922,110.49529875,124.99,124.98,0.063]
[1743562529095,110.35313718,124.99,124.98,0.063]
[1743562529796,118.49589875,124.99,124.98,0.063]
[1743562532512,118.35373718,124.99,124.98,0.063]
[1743562533281,118.49589875,124.99,124.98,0.063]
[1743562533485,0.28432314,124.93,124.9,0.063]
[1743562533705,11.14564989,124.91,124.9,0.063]
[1743562533913,29.79529875,124.91,124.9,0.063]
[1743562535215,37.80099875,124.91,124.9,0.063]
[1743562536299,20.0,124.88,124.85,0.063]
[1743562536504,10.86132675,124.86,124.85,0.063]
[1743562538299,19.15454989,124.86,124.85,0.063]
[1743562540519,99.85454989,124.86,124.85,0.063]
[1743562546919,118.50419875,124.86,124.85,0.063]
[1743562547725,0.28432314,124.84,124.83,0.063]
[1743562547909,91.84564989,124.84,124.83,0.063]
[1743562548624,99.85584989,124.84,124.83,0.063]
[1743562549027,118.50549875,124.84,124.83,0.063]
[1743562549221,125.62549875,124.84,124.83,0.063]
[1743562549605,44.92549875,124.84,124.83,0.063]
[1743562555123,20.0,124.82,124.81,0.063]
[1743562555328,11.14564989,124.82,124.81,0.063]
[1743562557528,37.80679875,124.82,124.81,0.063]
[1743562557843,18.64964886,124.81,124.8,0.063]
[1743562558008,72.95628261,124.81,124.8,0.063]
[1743562559338,29.51097561,124.81,124.8,0.063]
[1743562559638,37.52307561,124.81,124.8,0.063]
[1743562560339,11.14564989,124.81,124.8,0.063]
[1743562563335,11.00348832,124.81,124.8,0.063]
[1743562564351,62.60305689,124.81,124.8,0.063]
[1743562565228,11.14564989,124.81,124.8,0.063]
[1743562567139,19.15774989,124.81,124.8,0.063]
[1743562567349,19.18774989,124.81,124.8,0.063]
[1743562568027,11.17564989,124.81,124.8,0.063]
[1743562568344,19.18774989,124.81,124.8,0.063]
[1743562570529,0.03,124.81,124.8,0.063]
[1743562573146,0.03,124.81,124.8,8.0758]
[1743562576348,0.03,124.81,124.8,0.063]
[1743562576557,10.89132675,124.81,124.8,0.063]
[1743562577645,0.03,124.81,124.8,0.063]
[1743562582256,10.89132675,124.81,124.8,0.063]
[1743562583147,0.03,124.81,124.8,0.063]
[1743562583934,0.03,124.81,124.8,6.369]
[1743562584429,0.03,124.81,124.8,14.3818]
[1743562592968,0.03,124.81,124.8,21.5018]
[1743562593266,0.03,124.81,124.8,40.15144886]
[1743562599962,0.03,124.81,124.8,21.5018]
[1743562600347,0.03,124.81,124.8,40.15144886]
[1743562602164,0.03,124.86,124.83,20.0]
[1743562602363,0.03,124.86,124.83,21.6341]
[1743562603264,0.03,124.86,124.85,6.2271]
[1743562605371,0.03,124.86,124.84,7.12]
[1743562606770,0.03,124.86,124.84,15.1299]
[1743562618783,0.03,124.86,124.84,8.0099]
[1743562624294,10.89132675,124.86,124.83,8.0107]
[1743562627293,10.86132675,124.85,124.82,8.0114]
[1743562627595,10.86132675,124.84,124.81,8.0748]
[1743562628596,10.86132675,124.82,124.81,0.063]
[1743562629301,18.87282675,124.82,124.81,0.063]
[1743562630193,19.15714989,124.82,124.81,0.063]
[1743562631197,11.14564989,124.82,124.81,0.063]
[1743562634517,0.28432314,124.83,124.81,0.063]
[1743562634720,10.86132675,124.82,124.81,0.063]
[1743562638727,80.7,124.85,124.81,0.063]
[1743562638933,10.86132675,124.84,124.81,0.063]
[1743562639704,80.7,124.85,124.81,0.063]
[1743562639903,91.56132675,124.85,124.81,0.063]
[1743562640911,91.56132675,124.85,124.81,8.0751]
[1743562642820,10.86132675,124.85,124.81,8.0751]
[1743562643520,0.03,124.86,124.81,28.1055]
[1743562643815,0.03,124.86,124.81,35.2255]
[1743562644029,10.89132675,124.86,124.81,35.2255]
[1743562646828,10.86132675,124.85,124.81,35.2255]
[1743562649732,10.89132675,124.85,124.81,35.2255]
[1743562649938,10.89132675,124.85,124.81,15.1951]
[1743562650311,10.86132675,124.83,124.81,0.063]
[1743562650509,10.86132675,124.82,124.81,0.063]
[1743562652828,80.7,124.84,124.81,0.063]
[1743562653125,10.86132675,124.83,124.81,0.063]
[1743562653837,10.86132675,124.84,124.81,0.063]
[1743562654336,10.86132675,124.83,124.81,0.063]
[1743562658149,91.59132675,124.85,124.81,0.063]
[1743562658748,10.86132675,124.84,124.81,0.063]
[1743562663257,11.14564989,124.82,124.81,0.063]
[1743562663731,10.86132675,124.82,124.81,0.063]
[1743562664935,80.7,124.83,124.81,0.063]
[1743562665437,91.56132675,124.83,124.81,0.063]
[1743562667066,10.86132675,124.82,124.81,0.063]
[1743562667564,18.87282675,124.82,124.81,0.063]
[1743562671438,10.86132675,124.82,124.81,0.063]
[1743562672067,10.89132675,124.82,124.81,0.063]
[1743562680474,18.90282675,124.82,124.81,0.063]
[1743562683178,19.18714989,124.82,124.81,0.063]
[1743562683475,37.83679875,124.82,124.81,0.063]
[1743562683782,44.93679875,124.82,124.81,0.063]
[1743562684074,72.95628261,124.81,124.8,0.063]
[1743562684257,80.96838261,124.81,124.8,0.063]
[1743562685852,37.52307561,124.81,124.8,0.063]
[1743562686052,11.14564989,124.81,124.8,0.063]
[1743562686269,91.56132675,124.81,124.8,0.063]
[1743562690878,99.57342675,124.81,124.8,0.063]
[1743562691991,91.56132675,124.81,124.8,0.063]
[1743562692587,80.7,124.81,124.8,0.063]
[1743562692789,0.03,124.82,124.8,0.063]
[1743562695792,10.89132675,124.82,124.8,0.063]
[1743562700295,10.86132675,124.81,124.8,0.063]
[1743562701995,18.87342675,124.81,124.8,0.063]
[1743562706108,81.25270575,124.81,124.8,0.063]
[1743562706270,0.28432314,124.79,124.77,0.063]
[1743562706473,11.14564989,124.78,124.77,0.063]
[1743562707785,19.15974989,124.78,124.77,0.063]
[1743562708187,10.86132675,124.78,124.77,0.063]
[1743562708386,10.86132675,124.79,124.77,0.063]
[1743562708592,10.86132675,124.8,124.77,0.063]
[1743562709008,10.86132675,124.81,124.77,0.063]
[1743562709609,7.13,124.82,124.77,0.063]
[1743562709610,10.86132675,124.8,124.77,0.063]
[1743562709789,10.86132675,124.81,124.77,8.0777]
[1743562710302,10.86132675,124.81,124.78,1.5934]
[1743562712106,10.86132675,124.81,124.79,8.0134]
[1743562712310,0.03,124.82,124.79,8.0134]
[1743562713103,10.89132675,124.82,124.79,8.0134]
[1743562713797,0.03,124.82,124.79,8.0134]
[1743562714911,0.03,124.82,124.8,6.3947]
[1743562715109,0.03,124.82,124.81,20.16014886]
[1743562715311,0.03,124.85,124.82,18.64964886]
[1743562715488,0.03,124.85,124.84,20.0]
[1743562715683,0.03,124.85,124.84,21.6134]
[1743562715988,0.03,124.85,124.84,1.6134]
[1743562716190,0.03,124.85,124.84,9.6236]
[1743562716912,0.03,124.85,124.84,1.6134]
[1743562719310,0.03,124.85,124.83,13.4947]
[1743562719611,0.03,124.85,124.83,6.3947]
[1743562721911,17.01423661,124.85,124.81,9.6253]
[1743562723133,16.98423661,124.84,124.81,1.6134]
[1743562724313,16.98423661,124.83,124.8,6.6564]
[1743562724628,16.98423661,124.84,124.8,14.6689]
[1743562726916,16.98423661,124.83,124.8,6.6564]
[1743562728320,16.98423661,124.81,124.8,0.063]
[1743562729507,16.98423661,124.82,124.8,0.063]
[1743562730113,80.7,124.83,124.8,0.063]
[1743562731336,16.98423661,124.82,124.8,0.063]
[1743562732597,97.71423661,124.83,124.8,0.063]
[1743562734524,105.72513661,124.83,124.8,0.063]
[1743562735120,17.26855975,124.81,124.8,0.063]
[1743562735904,35.91820861,124.81,124.8,0.063]
[1743562737100,43.93030861,124.81,124.8,0.063]
[1743562739520,20.0,124.78,124.77,0.063]
[1743562739721,143.71820861,124.78,124.77,0.063]
[1743562740121,197.61820861,124.78,124.77,0.063]
[1743562740314,0.28432314,124.77,124.76,0.063]
[1743562740503,17.26855975,124.77,124.76,0.063]
[1743562740703,35.91820861,124.77,124.76,0.063]
[1743562741817,43.93290861,124.77,124.76,0.063]
[1743562746217,20.0,124.78,124.76,0.063]
[1743562746417,16.98423661,124.79,124.76,0.063]
[1743562747211,16.98423661,124.78,124.76,0.063]
[1743562750220,97.68423661,124.79,124.76,0.063]
[1743562750835,80.7,124.79,124.76,0.063]
[1743562751222,80.7,124.79,124.77,6.5447]
[1743562752153,97.68423661,124.79,124.77,6.5447]
[1743562753747,91.58238649,124.79,124.77,6.5447]
[1743562754124,10.88238649,124.79,124.77,6.5447]
[1743562755343,10.91238649,124.79,124.77,6.5447]
[1743562755545,0.03,124.79,124.77,6.5447]
[1743562758238,0.03,124.79,124.77,14.5592]
[1743562759947,0.03,124.79,124.77,6.5447]
[1743562760242,0.03,124.79,124.77,14.5591]
[1743562763156,0.03,124.79,124.77,16.1589]
[1743562771964,0.03,124.79,124.77,14.5591]
[1743562772447,10.91238649,124.79,124.77,6.5447]
[1743562772654,10.91238649,124.79,124.76,0.063]
[1743562773970,0.03,124.79,124.76,0.063]
[1743562776660,10.91238649,124.79,124.76,0.063]
[1743562777955,10.88238649,124.78,124.76,0.063]
[1743562779665,10.88238649,124.77,124.76,0.063]
[1743562779847,10.88238649,124.78,124.76,0.063]
[1743562780364,10.88238649,124.77,124.76,0.063]
[1743562780662,11.16670963,124.77,124.76,0.063]
[1743562781776,19.18140963,124.77,124.76,0.063]
[1743562782349,37.83105849,124.77,124.76,0.063]
[1743562784049,29.81635849,124.77,124.76,0.063]
[1743562789276,0.03,124.79,124.76,0.063]
[1743562789584,10.88238649,124.78,124.76,0.063]
[1743562794079,10.91238649,124.79,124.76,0.063]
[1743562796179,10.91238649,124.79,124.76,8.0783]
[1743562796682,0.03,124.79,124.76,8.0783]
[1743562796878,10.91238649,124.79,124.76,8.0783]
[1743562798383,0.03,124.79,124.76,8.0783]
[1743562799083,10.91238649,124.79,124.76,8.0783]
[1743562799982,10.88238649,124.78,124.76,0.063]
[1743562800388,10.88238649,124.77,124.76,0.063]
[1743562800687,11.16670963,124.77,124.76,0.063]
[1743562801275,19.18140963,124.77,124.76,0.063]
[1743562801665,11.16670963,124.77,124.76,0.063]
[1743562801977,10.88238649,124.77,124.76,0.063]
[1743562802583,10.88238649,124.78,124.76,0.063]
[1743562802771,10.91238649,124.79,124.76,0.063]
[1743562803065,10.88238649,124.77,124.76,0.063]
[1743562804296,19.18140963,124.77,124.76,0.063]
[1743562804667,37.83105849,124.77,124.76,0.063]
[1743562806788,18.64964886,124.76,124.75,0.063]
[1743562807088,36.91635849,124.76,124.75,0.063]
[1743562807291,31.16670963,124.73,124.72,0.063]
[1743562808387,20.0,124.73,124.72,0.063]
[1743562808586,10.88238649,124.74,124.72,0.063]
[1743562808782,80.7,124.75,124.72,0.063]
[1743562809274,80.7,124.78,124.73,7.8771]
[1743562809474,10.88238649,124.77,124.73,7.8771]
[1743562809876,10.88238649,124.77,124.74,8.0166]
[1743562810077,10.88238649,124.78,124.74,8.0166]
[1743562810278,10.88238649,124.78,124.74,28.0582]
[1743562811802,17.00937333,124.77,124.74,28.0582]
[1743562812005,17.00937333,124.77,124.74,8.0166]
[1743562814581,17.00937333,124.78,124.74,28.0582]
[1743562819714,0.03,124.79,124.74,68.1415]
[1743562819881,0.03,124.79,124.76,1.5435]
[1743562821078,17.00937333,124.78,124.76,1.5435]
[1743562821286,17.00937333,124.78,124.75,6.3719]
[1743562821688,17.00937333,124.78,124.75,14.3873]
[1743562824907,17.03937333,124.79,124.75,14.4503]
[1743562825212,0.03,124.78,124.75,14.4503]
[1743562826589,17.00937333,124.77,124.75,0.063]
[1743562826784,17.00937333,124.76,124.75,0.063]
[1743562827102,17.00937333,124.76,124.72,14.6345]
[1743562828411,17.00937333,124.77,124.72,14.6345]
[1743562829106,80.73,124.78,124.72,34.6794]
[1743562829614,17.00937333,124.77,124.72,34.6794]
[1743562829791,17.00937333,124.76,124.72,14.6345]
[1743562830704,17.00937333,124.76,124.72,6.6169]
[1743562830901,17.00937333,124.75,124.71,8.0183]
[1743562831615,17.00937333,124.74,124.71,8.0183]
[1743562832304,17.00937333,124.72,124.7,0.063]
[1743562832987,17.00937333,124.71,124.7,0.063]
[1743562833405,0.5,124.76,124.7,0.063]
[1743562833406,80.7,124.77,124.7,0.063]
[1743562833813,80.7,124.77,124.71,6.2829]
[1743562833997,17.00937333,124.76,124.71,6.2829]
[1743562834628,97.70937333,124.77,124.71,6.2829]
[1743562834998,17.00937333,124.76,124.72,8.0179]
[1743562835200,17.00937333,124.75,124.71,14.3013]
[1743562835398,17.00937333,124.74,124.71,14.3013]
[1743562835893,17.00937333,124.75,124.71,14.3013]
[1743562836117,17.00937333,124.76,124.71,14.3013]
[1743562836516,17.00937333,124.76,124.71,34.3478]
[1743562837129,0.03,124.78,124.71,34.3478]
[1743562837326,17.03937333,124.78,124.72,1.5699]
[1743562838306,17.00937333,124.77,124.72,1.5699]
[1743562838623,17.00937333,124.77,124.71,30.907003]
[1743562838828,17.03937333,124.78,124.71,30.907003]
[1743562839331,17.03937333,124.78,124.71,30.407003]
[1743562841725,17.00937333,124.77,124.71,31.998703]
[1743562843710,10.88661591,124.77,124.71,31.998703]
[1743562844432,10.91661591,124.78,124.71,31.998703]
[1743562845227,0.03,124.78,124.72,18.64964886]
[1743562846335,10.91661591,124.78,124.73,28.0605]
[1743562847846,10.88661591,124.77,124.73,28.0605]
[1743562848329,10.94961591,124.77,124.73,28.0605]
[1743562848513,0.063,124.77,124.73,28.0605]
[1743562849129,0.063,124.77,124.73,20.0432]
[1743562858054,10.88661591,124.76,124.73,20.0432]
[1743562859461,10.88661591,124.75,124.72,8.0179]
[1743562859634,10.88661591,124.73,124.7,0.063]
[1743562859825,10.88661591,124.71,124.7,0.063]
[1743562860456,12.73833905,124.71,124.7,0.063]
[1743562861250,20.75693905,124.71,124.7,0.063]
[1743562861469,39.40658791,124.71,124.7,0.063]
[1743562861672,45.55510037,124.71,124.7,0.063]
[1743562861838,37.53650037,124.71,124.7,0.063]
[1743562864452,1.85172314,124.71,124.7,0.063]
[1743562864654,17.03512837,124.71,124.7,0.063]
[1743562865557,17.03512837,124.72,124.7,0.063]
[1743562866243,97.73512837,124.73,124.7,0.063]
[1743562866445,97.73512837,124.75,124.7,0.063]
[1743562866977,17.03512837,124.74,124.7,0.063]
[1743562867148,17.03512837,124.72,124.7,0.063]
[1743562869780,17.03512837,124.71,124.7,0.063]
[1743562870881,17.03512837,124.72,124.7,0.063]
[1743562871172,97.73512837,124.73,124.7,0.063]
[1743562871474,0.063,124.71,124.7,0.063]
[1743562874170,0.063,124.71,124.7,20.063]
[1743562875865,0.063,124.71,124.7,46.73184886]
[1743562877461,0.063,124.71,124.7,53.83184886]
[1743562880956,0.063,124.71,124.7,46.73184886]
[1743562881161,0.063,124.71,124.7,53.83184886]
[1743562882886,0.063,124.77,124.71,18.933972]
[1743562883082,0.063,124.77,124.72,6.1863]
[1743562884361,10.94824089,124.77,124.72,6.1863]
[1743562884791,0.063,124.77,124.72,6.1863]
[1743562885200,0.063,124.77,124.73,8.0173]
[1743562886289,0.063,124.77,124.73,28.0605]
[1743562887991,0.063,124.77,124.74,7.1]
[1743562888962,0.063,124.77,124.73,29.7117]
[1743562889478,10.94824089,124.77,124.73,28.0605]
[1743562891793,0.063,124.77,124.73,28.0605]
[1743562894902,10.94824089,124.77,124.73,28.0605]
[1743562895589,0.063,124.77,124.73,28.0605]
[1743562905982,0.063,124.77,124.73,68.147]
[1743562906216,0.063,124.77,124.76,38.64964886]
[1743562906388,0.063,124.84,124.8,20.0]
[1743562906900,0.063,124.84,124.8,27.08]
[1743562907401,0.063,124.84,124.8,31.14273099]
[1743562907576,0.063,124.84,124.81,8.0121]
[1743562925105,0.063,124.84,124.81,14.1404]
[1743562929412,0.063,124.84,124.81,8.0121]
[1743562929927,0.03,124.86,124.84,20.0]
[1743562930134,0.03,124.91,124.86,18.64964886]
[1743562930432,0.03,124.91,124.86,31.18388827]
[1743562931232,0.03,124.91,124.87,8.0083]
[1743562931626,0.03,124.91,124.88,25.07414886]
[1743562931826,0.03,124.91,124.89,7.08]
[1743562933440,0.03,124.91,124.89,15.087]
[1743562949956,0.03,124.91,124.89,8.007]
[1743562952164,0.03,124.91,124.88,8.0076]
[1743562958760,0.03,124.91,124.88,20.54183941]
[1743562959458,82.06134769,124.95,124.89,31.18388827]
[1743562959657,0.03,124.96,124.89,118.15898827]
[1743562959856,0.03,124.96,124.9,28.0224]
[1743562960183,0.03,124.96,124.91,7.08]
[1743562960859,10.88524089,124.95,124.9,28.0224]
[1743562963074,10.91524089,124.96,124.9,28.0224]
[1743562965474,0.03,124.96,124.9,28.0224]
[1743562965775,10.91524089,124.96,124.9,28.0224]
[1743562966387,0.03,124.96,124.9,28.0224]
[1743562967063,10.91524089,124.96,124.9,28.0224]
[1743562968180,0.03,124.96,124.9,28.0224]